Cogmind - Beta 12 @@@ ROGUE MODE // 2023.09.04 @ 12:15:55 Player: scoobysnack1 Result: Destroyed by H-61 Shepherd with Heavy Assault Cannon Performance ------------- Evolutions (2) 1000 Regions Visited (4) 800 Robots Destroyed (78) 390 Value Destroyed (2125) 2125 Prototype IDs (7) 140 Alien Tech Used (0) 0 Bonus (183) 183 TOTAL SCORE: 4638 Bonus ------- High Alert Combat Kills 119 Follower Combat Kills 73 Friendly Fire -9 Cogmind --------- Core Integrity 0/550 Matter 259/300 Energy 270/280 System Corruption 8% Temperature Cool (9) Movement Treading (240) Ox1 Location -8/Materials Parts ------- > --- POWER (1) -------- Cooled Ion Engine > --- PROPULSION (3) --- Light Treads > --- UTILITY (5) ------ Improved Heat Sink Large Storage Unit Sensor Array Melee Analysis Suite Core Shielding > --- WEAPON (2) ------- Particle Gun > --- INVENTORY (15) --- Light Nuclear Core Light Treads High-capacity Matter Pod (200) High-capacity Matter Pod (200) Sensor Array System Shield EM Shotgun Improved Assault Rifle Grenade Launcher Datajack Scythe Peak State ------------ > --- POWER ------------ Cooled Ion Engine > --- PROPULSION ------- Light Treads Light Treads Light Treads > --- UTILITY ---------- Improved Heat Sink Large Storage Unit Sensor Array Melee Analysis Suite Core Shielding > --- WEAPON ----------- Particle Gun Assault Cannon > --- INVENTORY -------- Light Nuclear Core Light Treads High-capacity Matter Pod High-capacity Matter Pod Sensor Array System Shield EM Shotgun Improved Assault Rifle Grenade Launcher Datajack Scythe [Rating: 22] Favorites ----------- Power Heavy Ion Engine Engine Heavy Ion Engine Propulsion Light Treads Treads Light Treads Leg Aluminum Leg Wheel Wheel Utility Large Storage Unit Device Sensor Array Storage Large Storage Unit Processor Signal Interpreter Protection Light Armor Plating Weapon Light Assault Rifle Energy Gun EM Shotgun Ballistic Gun Light Assault Rifle Ballistic Cannon Assault Cannon Launcher Grenade Launcher Impact Weapon Hammer Slashing Weapon Katana Special Melee Weapon Datajack Build | -11 -10 -10 -9 -8 ------- Run | Jun Mat Min Mat Mat Slots Evolved 4 | . . . 2 2 Power . | . . . . . Propulsion 1 | . . . 1 . Utility 3 | . . . 1 2 Weapon . | . . . . . Parts Attached 103 | 6 28 1 48 20 Power 7 | 1 1 . 4 1 Engine 7 | 1 1 . 4 1 Core . | . . . . . Reactor . | . . . . . Propulsion 22 | 2 9 . 7 4 Treads 17 | . 6 . 7 4 Leg 2 | . 2 . . . Wheel 3 | 2 1 . . . Hover . | . . . . . Flight . | . . . . . Utility 39 | 1 10 . 22 6 Device 14 | . 4 . 8 2 Storage 4 | 1 3 . . . Processor 4 | . 1 . 2 1 Hackware . | . . . . . Protection 17 | . 2 . 12 3 Artifact . | . . . . . Weapon 35 | 2 8 1 15 9 Energy Gun 11 | 2 3 . 4 2 Energy Cannon . | . . . . . Ballistic Gun 9 | . 3 . 4 2 Ballistic Cannon 3 | . . . . 3 Launcher 1 | . . . 1 . Special Weapon . | . . . . . Impact Weapon 3 | . . . 3 . Slashing Weapon 5 | . 1 . 2 2 Piercing Weapon . | . . . . . Special Melee Weapon 3 | . 1 1 1 . Unidentified Prototypes 3 | . . . 3 . Parts Lost 23 | . 4 . 8 11 Power 2 | . . . 1 1 Propulsion 8 | . 1 . 3 4 Utility 8 | . 1 . 4 3 Weapon 5 | . 2 . . 3 Highest Loss Streak 9 | . 3 . 2 9 To Critical Strikes . | . . . . . Average Slot Usage (%) 97 | . 97 100 99 87 Engine 11 | . 14 14 10 7 Treads 28 | . 22 28 32 24 Wheel 1 | . 3 . . . Device 9 | . 5 14 9 14 Storage 10 | . 10 14 11 9 Processor 1 | . 4 . . 3 Protection 9 | . 6 . 11 10 Energy Gun 9 | . 11 3 10 4 Ballistic Gun 7 | . 13 14 4 2 Slashing Weapon 3 | . 1 . 4 1 Special Melee Weapon 1 | . 1 10 . . Naked Turns . | . . . . . Heaviest Build 50 | 13 30 28 44 50 Greatest Support 60 | 20 40 40 60 60 Greatest Overweight (x) 2 | 2 1 . 1 . Average Overweight (x) . | . . . . . Largest Inventory Capacity 15 | 8 15 15 15 15 Average Capacity 13 | 7 11 15 15 15 Most Carried 15 | 6 15 15 15 15 Average Carried 13 | 3 10 14 14 12 Final Capacity 15 | 8 15 15 15 15 Final Carried 15 | 6 14 15 15 11 Class Distribution -------------------- 66% | Mutant 33% | Scavenger-Mutant Dominant Class ---------------- Mutant | -10/Materials Mutant | -10/Mines Scavenger-Mutant | -9/Materials Scavenger-Mutant | -8/Materials Resources | -11 -10 -10 -9 -8 ----------- Run | Jun Mat Min Mat Mat Matter Collected 1914 | 219 400 22 720 553 Remotely . | . . . . . Salvage Created 2493 | . 499 . 1341 653 Parts 149 | . 23 . 90 36 Haulers Intercepted 4 | . 1 . 3 . Recyclers Shooed . | . . . . . Parts Field Recycled . | . . . . . Retrieved Matter . | . . . . . Parts Self-Destructed . | . . . . . Prevented . | . . . . . Kills | -11 -10 -10 -9 -8 ------- Run | Jun Mat Min Mat Mat Combat Hostiles Destroyed 59 | . 12 . 31 16 Melee 11 | . . . 8 3 Guns 34 | . 12 . 18 4 Cannons 9 | . . . . 9 AOE 4 | . . . 4 . Classes Destroyed 11 | . 4 . 6 1 Worker 2 | . . . 2 . Tunneler 1 | . . . 1 . Hauler 4 | . 1 . 3 . Recycler 2 | . . . 1 1 Operator 3 | . . . 3 . Watcher 7 | . 1 . 5 1 Swarmer 16 | . 3 . 9 4 Grunt 30 | . 9 . 14 7 Duelist 4 | . . . 2 2 Sentry 8 | . . . 6 2 Specialist 1 | . . . . 1 Best Kill Streak 9 | . 4 . 9 4 Combat Bots Only 4 | . 4 . 4 4 Max Kills in Single Turn 4 | . 2 . 4 2 Gunslinging . | . . . . . Exploded 2 | . . . 2 . Melee 1 | . . . 1 1 Uniques/NPCs Destroyed . | . . . . . Combat | -11 -10 -10 -9 -8 -------- Run | Jun Mat Min Mat Mat Damage Taken 4688 | . 744 17 1599 2328 Core 879 | . 149 . 151 579 Absorbed by Shields . | . . . . . Redirected to Shielding 20 | . . . . 20 Regen/Repaired (Parts) 119 | . 119 . . . Core Remaining (%) 67 | 100 . 40 62 . Volleys Fired 200 | . 64 . 80 56 Largest 2 | . 2 . 2 2 Hottest 109 | . 90 . 88 109 Shots Fired 320 | . 112 . 122 86 Gun 268 | . 112 . 119 37 Cannon 49 | . . . . 49 Launcher 3 | . . . 3 . Special . | . . . . . Kinetic 183 | . 55 . 57 71 Thermal 121 | . 57 . 52 12 Explosive 3 | . . . 3 . Electromagnetic 13 | . . . 10 3 Robot Hit Streak 25 | . 12 . 8 25 Robot Miss Streak 9 | . 5 . 9 6 Penetration Max . | . . . . . Secondary Targets 4 | . 1 . 3 . Max Gunslinging Chain 1 | . 1 . 1 . Shots Hit Robots 278 | . 82 1 124 71 Core Hits 143 | . 31 . 82 30 Critical Kills 2 | . 1 . 1 . Critical Parts Destroyed 4 | . 1 . 3 . Critical Strikes 12 | . 4 . 4 4 Burn 3 | . 2 . . 1 Destroy 2 | . 2 . . . Blast 1 | . . . . 1 Smash 4 | . . . 4 . Sever 2 | . . . . 2 Melee Attacks 66 | . 6 1 40 19 Impact 22 | . . . 22 . Slashing 39 | . 3 . 17 19 Piercing . | . . . . . Sneak Attacks 7 | . 3 1 3 . Combat Hostiles . | . . . . . Follow-up Attacks . | . . . . . Damage Inflicted 4893 | . 785 . 2518 1590 Guns 2400 | . 760 . 1112 528 Cannons 757 | . . . . 757 Explosions 465 | . . . 465 . Melee 1271 | . 25 . 941 305 Ramming . | . . . . . Kinetic 1865 | . 314 . 463 1088 Thermal 1114 | . 446 . 529 139 Explosive 465 | . . . 465 . Electromagnetic 178 | . . . 120 58 Impact 497 | . . . 497 . Slashing 774 | . 25 . 444 305 Piercing . | . . . . . Highest Corruption 8 | . 2 2 . 8 Average Corruption 4 | . 2 2 . 8 Corruption Purged . | . . . . . Corruption Blocked . | . . . . . Effects 22 | . 4 6 . 12 Message Errors 7 | . . 3 . 4 Matter Fused 7 | . 2 2 . 3 Heat Flow Errors 1 | . 1 . . . Energy Discharges 1 | . . 1 . . Parts Rejected 1 | . . . . 1 Data Loss (minor) 2 | . . . . 2 Data Loss (major) 1 | . . . . 1 Misfires 1 | . 1 . . . Alerts 1 | . . . . 1 Overload Shots . | . . . . . Overflow Damage 136 | . 5 . 125 6 Projectiles 6 | . . . . 6 Explosions 30 | . . . 30 . Melee 100 | . 5 . 95 . Knockbacks 9 | . . . 2 7 Impact 2 | . . . 2 . Kinetic 7 | . . . . 7 Secondary . | . . . . . Self-Inflicted Damage 38 | . . . 38 . Shots 1 | . . . 1 . Rammed . | . . . . . Targets Rammed . | . . . . . Kicked . | . . . . . Crushed . | . . . . . Highest Temperature 327 | . 302 . 327 254 Average Temperature 80 | . 98 . 65 81 Received Heat Transfer 1794 | . 414 . 543 837 Siege Activations . | . . . . . Robots Corrupted . | . . . . . Combat Hostiles . | . . . . . Parts Fried 3 | . . . 3 . Impact Corruptions 9 | . . . 9 . Robots Melted . | . . . . . Combat Hostiles . | . . . . . Parts Melted 2 | . 2 . . . Heat Transferred 2549 | . 1326 . 816 407 Parts Sabotaged . | . . . . . Parts Stolen . | . . . . . Parts Stripped . | . . . . . Power Chain Reactions 1 | . . . 1 . Missiles Intercepted . | . . . . . Alert | -11 -10 -10 -9 -8 ------- Run | Jun Mat Min Mat Mat Peak Influence 584 | . 175 . 584 393 Initial 127 | . . . . 127 Average 250 | . 70 . 383 247 Maximum Alert Level 2 | . . . 2 1 Low Security (%) 45 | 100 100 100 14 21 Level 1 23 | . . . 26 78 Level 2 31 | . . . 59 . Level 3 . | . . . . . Level 4 . | . . . . . Level 5 . | . . . . . High Security . | . . . . . Max Security . | . . . . . Squads Dispatched 13 | . 4 . 6 3 Investigation 5 | . 2 . 2 1 Extermination . | . . . . . Reinforcement 8 | . 2 . 4 2 Assault . | . . . . . Garrison . | . . . . . Intercept . | . . . . . Searches Triggered . | . . . . . Construction Impeded . | . . . . . Haulers Reinforced . | . . . . . Active Scanning Responses . | . . . . . Cargo Convoy Interrupts . | . . . . . Stealth | -11 -10 -10 -9 -8 --------- Run | Jun Mat Min Mat Mat Distress Signals 9 | . 1 . 6 2 Communications Jammed . | . . . . . Distress Signals . | . . . . . Times Spotted 99 | . 24 1 48 26 Peak Tracking Total 6 | . 3 . 6 5 Tactical Retreats 5 | . . . 2 3 Traps | -11 -10 -10 -9 -8 ------- Run | Jun Mat Min Mat Mat Traps Triggered 4 | . 2 . 1 1 Indirectly . | . . . . . Trap Hack Attempts . | . . . . . Triggered . | . . . . . Disarmed . | . . . . . Reprogrammed . | . . . . . Reused . | . . . . . Traps Extracted . | . . . . . Installed . | . . . . . Triggered . | . . . . . Machines | -11 -10 -10 -9 -8 ---------- Run | Jun Mat Min Mat Mat Machines Disabled 2 | . . . 2 . Max in Single Turn 1 | . . . 1 . Machines Repaired . | . . . . . Machines Sabotaged . | . . . . . Overloaded Fab Kills . | . . . . . Hacking | -11 -10 -10 -9 -8 --------- Run | Jun Mat Min Mat Mat Machines Accessed 18 | . 4 1 11 2 Terminals 12 | . 2 . 9 1 Fabricators . | . . . . . Repair Stations 1 | . 1 . . . Recycling Units 3 | . 1 . 1 1 Scanalyzers 1 | . . . 1 . Garrison Access . | . . . . . Total Hacks 55 | . 14 1 36 4 Successful 32 | . 9 1 20 2 Failed 23 | . 5 . 16 2 Catastrophic 2 | . . . 2 . Database Lockouts . | . . . . . Manual 23 | . 3 . 18 2 Terminals 34 | . 6 . 26 2 Fabricators . | . . . . . Repair Stations 3 | . 3 . . . Recycling Units 11 | . 5 . 4 2 Scanalyzers 6 | . . . 6 . Garrison Access . | . . . . . Terminal Hacks 13 | . 2 1 10 . Record 1 | . . . 1 . Part Schematic 1 | . . . 1 . Prototype ID Bank 2 | . . . 2 . Open Door 1 | . . 1 . . Terminal Index 2 | . 1 . 1 . Alert Level 3 | . 1 . 2 . Unreport Threat 1 | . . . 1 . Locate Traps 1 | . . . 1 . Dispatch Records 1 | . . . 1 . Fabricator Hacks . | . . . . . Repair Station Hacks 2 | . 2 . . . Scan Component 1 | . 1 . . . Repair 1 | . 1 . . . Recycling Unit Hacks 5 | . 4 . . 1 Recycle Component 1 | . 1 . . . Process 1 | . 1 . . . Report Inventory 2 | . 1 . . 1 Retrieve Matter 1 | . 1 . . . Scanalyzer 6 | . . . 6 . Insert Component 3 | . . . 3 . Analyze 3 | . . . 3 . Garrison Access Hacks . | . . . . . Unauthorized Hacks 6 | . 1 . 4 1 Terminals 5 | . 1 . 3 1 Assimilate 1 | . . . 1 . Botnet 4 | . 1 . 2 1 Fabricators . | . . . . . Repair Stations . | . . . . . Recycling Units 1 | . . . 1 . Monitor 1 | . . . 1 . Scanalyzers . | . . . . . Garrison Access . | . . . . . Data Cores Recovered 1 | . . . 1 . Used . | . . . . . Hacking Detections 16 | . 3 . 11 2 Full Trace Events 2 | . 1 . 1 . Feedback Events . | . . . . . Feedback Blocked . | . . . . . Robot Schematics Acquired . | . . . . . Robots Built . | . . . . . Authchips . | . . . . . Time . | . . . . . Total Robot Build Rating . | . . . . . Part Schematics Acquired 4 | . . . 4 . Parts Built . | . . . . . Authchips . | . . . . . Time . | . . . . . Total Part Build Rating . | . . . . . Parts Repaired 1 | . 1 . . . Time 26 | . 26 . . . Parts Recycled 1 | . 1 . . . Recycled Matter 284 | . 284 . . . Retrieved Matter 284 | . 284 . . . Retrieved Components . | . . . . . Parts Scanalyzed 3 | . . . 3 . Part Schematics Acquired 3 | . . . 3 . Parts Damaged . | . . . . . Bothacking | -11 -10 -10 -9 -8 ------------ Run | Jun Mat Min Mat Mat Used RIF Installer . | . . . . . Robots Hacked 3 | . 1 1 1 . Non-combat 3 | . 1 1 1 . Combat . | . . . . . Robot Hacks Applied 3 | . 1 1 1 . parse_system 1 | . . 1 . . no_distress 2 | . 1 . 1 . Relay Couplers Released . | . . . . . Fabnet Peak Effective % . | . . . . . Robots Rewired . | . . . . . Allies Hacked . | . . . . . Hacks Repelled . | . . . . . Allies | -11 -10 -10 -9 -8 -------- Run | Jun Mat Min Mat Mat Total Allies 3 | . . 3 . . Largest Group 3 | . . 3 2 . Highest-Rated Group 40 | . . 40 32 . Highest-Rated Ally 16 | . . 16 16 . Total Orders . | . . . . . Ally Attacks 29 | . . 6 23 . Total Damage 327 | . . 22 305 . Kills 4 | . . . 4 . Allies Corrupted . | . . . . . Allies Melted . | . . . . . Intel | -11 -10 -10 -9 -8 ------- Run | Jun Mat Min Mat Mat Robot Analysis Total . | . . . . . Derelict Logs Recovered . | . . . . . Drone Launches . | . . . . . Drone Recoveries . | . . . . . Exploration | -11 -10 -10 -9 -8 ------------- Run | Jun Mat Min Mat Mat Turns Passed 4314 | 61 1211 263 2272 507 Spaces Moved 2022 | 52 602 160 1050 158 Core 6 | 6 . . . . Treads 1736 | . 368 160 1050 158 Legs 58 | . 58 . . . Wheels 222 | 46 176 . . . Hover . | . . . . . Flight . | . . . . . Fastest Speed 50 | 50 80 160 160 160 Average Speed 150 | 78 133 160 160 160 Slowest Speed 240 | 150 240 160 240 160 Overloaded Moves . | . . . . . Propulsion Burnouts . | . . . . . Robots Hopped . | . . . . . Cave-ins Triggered 1 | . . . . 1 Exploration Rate (%) 43 | 5 74 34 83 20 Regions Visited 4 Branch Regions 1 Pre-discovered Areas . | . . . . . Known Exits Taken . | . . . . . Unknown Exits Taken 4 | 1 1 1 1 . Scrap Searched 1 | . . 1 . . Spaces Dug . | . . . . . Terrain Destroyed 20 | . . . 14 6 Melee . | . . . . . Projectile 6 | . . . . 6 AOE 14 | . . . 14 . Terrain Rammed . | . . . . . Walls Destroyed . | . . . . . Machines Disabled . | . . . . . Actions | -11 -10 -10 -9 -8 --------- Run | Jun Mat Min Mat Mat Total 2890 | 68 896 166 1462 298 Wait 398 | 5 163 4 192 34 Move 2018 | 51 601 159 1049 158 Hop . | . . . . . Pick Up 53 | 6 20 1 22 4 Fast Attach 31 | 6 7 . 11 7 Attach 21 | . 2 . 9 10 Detach 9 | . . . 5 4 Swap 51 | . 19 1 28 3 Drop 44 | . 14 . 27 3 Fire 200 | . 64 . 80 56 Melee 65 | . 6 1 39 19 Ram . | . . . . . Kick . | . . . . . Crush . | . . . . . Escape Stasis . | . . . . . Rewire . | . . . . . Trap . | . . . . . Miscellaneous . | . . . . . Route ------- -11/Junkyard -10/Materials (discovered 3 exits: *Mat / *Min x2) -10/Mines -9/Materials (discovered 6 exits: *Mat x3 / *Min x2 / [*Sto]) -8/Materials History --------- Turn | Location | Event 24 | -11/Junkyard | Discovered new exit (range 14) 62 | -11/Junkyard | Entered Materials 284 | -10/Materials | Discovered new exit (range 12) 298 | -10/Materials | Lost 3 parts (1n1u1w) 298 | -10/Materials | Discovered new exit (range 16) 328 | -10/Materials | Build established: Mutant 507 | -10/Materials | Core integrity fell below 50% 819 | -10/Materials | Discovered new exit (range 15) 1108 | -10/Materials | Repaired Lgt. Treads 1273 | -10/Materials | Entered Mines 1276 | -10/Mines | Assembled infested the area 1281 | -10/Mines | Assisted by a Guerilla fighting off Assembled 1346 | -10/Mines | Assisted by bots powering up and referring to "LRC-V3" 1419 | -10/Mines | Met a Derelict who couldn't figure out how to use a Trap Extractor 1523 | -10/Mines | Discovered new exit (range 9) 1536 | -10/Mines | Entered Materials 1536 | -9/Materials | Accompanied by 3 allies 1536 | -9/Materials | Evolved 2 slots: Propulsion x1, Utility x1 1541 | -9/Materials | Discovered new exit (range 8) 1657 | -9/Materials | Discovered new exit (range 11) 1884 | -9/Materials | Discovered new exit (range 15) 2027 | -9/Materials | Identified exit to Mines 2597 | -9/Materials | Discovered new exit (range 4) 2751 | -9/Materials | Build established: Scavenger-Mutant 3145 | -9/Materials | Discovered new exit (range 5) 3674 | -9/Materials | Discovered new exit (range 13) 3808 | -9/Materials | Entered another Materials area 3808 | -8/Materials | Evolved 2 slots: Utility x2 3890 | -8/Materials | Build established: Mutant 4027 | -8/Materials | Crushed by falling debris 4069 | -8/Materials | Core integrity fell below 50% 4107 | -8/Materials | Core integrity fell below 20% 4115 | -8/Materials | Lost 9 parts (1p3n3u2w) 4315 | -8/Materials | Destroyed by H-61 Shepherd with Heavy Assault Cannon Last Messages --------------- Terminal linked with 0 systems. Awaiting botnet instructions. 04274_ T-07 Excavator is excavating. 04281_ HZY, UMFB#NLEOCXBYRDD7QQIVVBASQAS3WREUY 04282_ T-07 Excavator is excavating. 04286_ W-25 Informer destroyed. 04287_ T-07 Excavator is excavating. 04289_ ALERT: Suspicious intruders detected, dispatching Specialist reinforcements to area. 04300_ X-62 Marksman destroyed. 04301_ Penetrated by Slug. 04307_ H-61 Shepherd calls for reinforcements. 04307_ ALERT: Hostile activity reported, dispatching reinforcements to area. 04307_ Slug penetrates Wall. 04308_ System corrupted: Lgt. Treads rejected. 04309_ X-62 Marksman suffers critical hit (Burn). 04312_ Penetrated by Slug. 04312_ Lgt. Treads destroyed. 04313_ Assault Cannon destroyed. Map ----- +----------------------------------------------------+ | ???????????????????????????????????????????? | | ???????????????????????????????????????????? | | ???????????????????????????????????????????? | | ???????????????????????????????????????????? | | ???????????????????????????????????????????? | | ???????????????????????????????????????????? | | ???????????????????????? ????????????????? | | ???????????????????????# ????????????????? | | ???????????????????????# #???????????????? | | ???????????????????????# #???????????????? | | ???????????????????????# #???????????????? | | ???????????????????????# #???????????????? | | ???????????????????????# +???????????????? | | ???????????????????????# #???????????????? | | ???????????????????????# #???????????????? | | ???????????????????????# ###############?? | | ???????????????????????# ##? | | ???????????????????????# +? | | ???????????????????????# """ """ #?? | | ???????????????????????# """ """ #?? | | ???????????????????????# """ """ #?? | | ???????????????????????# ### | | ?????????#######+####### "T" ! | | ????????## """ | | ????????#; =x= % | | ?????????# !%H% @%% | | ?????????# [########## ##############+##### | | ?????????????????????# #????????# # | | ?????????????????????# #????????# """"" # | | ?????????????????????#####????????# """"% # | | ??????????????????????????????????# """""[*+ | | ??????????????????????????????????# """"" # | | ??????????????????????????????????# """"" %# | | ??????????????????????????????????#?""""" # | | ????????????????????????????????????""""" # | | ???????????????????????????????????? !# | | ????????????????????????????????????######## | | ???????????????????????????????????????????? | | ???????????????????????????????????????????? | | ???????????????????????????????????????????? | | ???????????????????????????????????????????? | | ???????????????????????????????????????????? | | ???????????????????????????????????????????? | | | | | | | | | | | | | | | +----------------------------------------------------+ Best States ------------- Heat Dissipation 45 Energy Generation 14 Energy Capacity 280 Matter Stores 300 Matter Capacity 300 Sight Range 16 Robot Scan Range 14 Terrain Scan Density 10 ECM Strength 1 Armor Coverage 375 Core Shielding 20 Evasion (%) 55 Melee Accuracy 5 Recoil Reduction 3 Item Schematics ----------------- Imp. Assault Rifle | -9/Materials | Scanalyzed Grenade Launcher | -9/Materials | Scanalyzed Lgt. Treads | -9/Materials | Scanalyzed Imp. Treads | -9/Materials | Hacked Robot Schematics ------------------ None Fabricated ------------ Nothing Alien Tech Used ----------------- None Achievements -------------- None Challenges ------------ None Game ------ Seed MatterKineticRedirector Manual? 0 Play Time 01:23:38 Cumulative 49.7 hours Start 2023.09.04 @ 10:52:44 End 2023.09.04 @ 12:15:55 Sessions 1 Manual Loads 0 Difficulty Rogue Special Mode None Game No. 33 Rogue 33 Adventurer 0 Explorer 0 Win Type - Total 0 Types 0/0/0/0/0/0/0/0/0 Lore% 25 Gallery% 33 Achievement% 28 Wizard Run 0 Options --------- ASCII 0 Keyboard 0 Movement Mouse Keybinds 0 Fullscreen 2 Font 18/SmallcapsGlow Map View 76x50 Tactical HUD 1 Map Filters NONE Filters NONE Steam 1 RUN: 2af3a2ea-15d2-4bd5-aec4-774175c25090